fUSD/lending_fUSD_20241206
["ID","MTS","AMOUNT","RATE_DAILY","PERIOD"]
[344508458,1733521848659,-843.87475464,9.589e-05,2]
[344508459,1733521848669,-500.0,9.589e-05,2]
[344508460,1733521848679,-500.0,9.589e-05,2]
[344508461,1733521848690,-500.0,9.589e-05,2]
[344508462,1733521848700,-500.0,9.589e-05,2]
[344508463,1733521848711,-500.0,9.589e-05,2]
[344508464,1733521848720,-500.0,9.589e-05,2]
[344508465,1733521848732,-414.90470119,9.589e-05,2]
[344508466,1733521848742,-500.0,9.589e-05,2]
[344508467,1733521848752,-500.0,9.589e-05,2]
[344508468,1733521848762,-500.0,9.589e-05,2]
[344508469,1733521848771,-500.0,9.589e-05,2]
[344508470,1733521848781,-500.0,9.589e-05,2]
[344508471,1733521848792,-583.30788589,9.589e-05,2]
[344508472,1733521848802,-1711.89,9.589e-05,2]
[344508473,1733521848812,-1711.89,9.589e-05,2]
[344508474,1733521848823,-1711.89,9.589e-05,2]
[344508475,1733521848832,-1711.89,9.589e-05,2]
[344508476,1733521848842,-1711.89,9.589e-05,2]
[344508477,1733521848852,-1711.89,9.589e-05,2]
[344508478,1733521848862,-1711.89,9.589e-05,2]
[344508479,1733521848872,-1711.89,9.589e-05,2]
[344508480,1733521848882,-1711.89,9.589e-05,2]
[344508481,1733521848892,-1711.89,9.589e-05,2]
[344508482,1733521848902,-1711.89,9.589e-05,2]
[344508483,1733521848912,-1711.89,9.589e-05,2]
[344508484,1733521848921,-1711.89,9.589e-05,2]
[344508485,1733521848931,-1711.89,9.589e-05,2]
[344508486,1733521848941,-1711.89,9.589e-05,2]
[344508487,1733521848951,-1711.89,9.589e-05,2]
[344508488,1733521848961,-1711.89,9.589e-05,2]
[344508489,1733521848970,-1711.89,9.589e-05,2]
[344508490,1733521848980,-1711.89,9.589e-05,2]
[344508491,1733521848989,-1711.89,9.589e-05,2]
[344508492,1733521848999,-1310.23904281,9.589e-05,2]
[344508493,1733521849199,-401.65095719,9.589e-05,2]
[344508494,1733521849208,-1711.89,9.589e-05,2]
[344508495,1733521849218,-1711.89,9.589e-05,2]
[344508496,1733521849227,-1712.0654981,9.589e-05,2]
[344508497,1733521849237,-608.49495941,9.589e-05,2]
[344508498,1733521849247,-1364.19,9.589e-05,2]
[344508499,1733521849256,-1364.19,9.589e-05,2]
[344508500,1733521849266,-500.0,9.589e-05,2]
[344508501,1733521849276,-500.0,9.589e-05,2]
[344508502,1733521849285,-1364.19,9.589e-05,2]
[344508503,1733521849295,-500.0,9.589e-05,2]
[344508504,1733521849304,-1364.19,9.589e-05,2]
[344508505,1733521849315,-500.0,9.589e-05,2]
[344508506,1733521849325,-500.0,9.589e-05,2]
[344508507,1733521849334,-80.9669902,9.589e-05,2]
[344508508,1733521849363,-419.0330098,9.589e-05,2]
[344508509,1733521849374,-500.0,9.589e-05,2]
[344508510,1733521849383,-1364.19,9.589e-05,2]
[344508511,1733521849393,-500.0,9.589e-05,2]
[344508512,1733521849403,-500.0,9.589e-05,2]
[344508513,1733521849413,-500.0,9.589e-05,2]
[344508514,1733521849423,-1255.80751936,9.589e-05,2]
[344508515,1733521849475,-108.38248064,9.589e-05,2]
[344508516,1733521849484,-500.0,9.589e-05,2]
[344508517,1733521849495,-500.0,9.589e-05,2]
[344508518,1733521849505,-500.0,9.589e-05,2]
[344508519,1733521849514,-500.0,9.589e-05,2]
[344508520,1733521849523,-1364.19,9.589e-05,2]
[344508521,1733521849533,-321.70912756,9.589e-05,2]
[344508522,1733521849548,-178.29087244,9.589e-05,2]
[344508523,1733521849559,-500.0,9.589e-05,2]
[344508524,1733521849571,-500.0,9.589e-05,2]
[344508525,1733521849581,-1364.19,9.589e-05,2]
[344508526,1733521849591,-500.0,9.589e-05,2]
[344508527,1733521849602,-500.0,9.589e-05,2]
[344508528,1733521849613,-500.0,9.589e-05,2]
[344508529,1733521849623,-1364.19,9.589e-05,2]
[344508530,1733521849633,-500.0,9.589e-05,2]
[344508531,1733521849644,-500.0,9.589e-05,2]
[344508532,1733521849654,-500.0,9.589e-05,2]
[344508533,1733521849663,-1364.19,9.589e-05,2]
[344508534,1733521849673,-500.0,9.589e-05,2]
[344508535,1733521849684,-500.0,9.589e-05,2]
[344508536,1733521849694,-500.0,9.589e-05,2]
[344508537,1733521849703,-1364.19,9.589e-05,2]
[344508538,1733521849713,-500.0,9.589e-05,2]
[344508539,1733521849723,-500.0,9.589e-05,2]
[344508540,1733521849735,-1364.19,9.589e-05,2]
[344508541,1733521849745,-500.0,9.589e-05,2]
[344508542,1733521849755,-500.0,9.589e-05,2]
[344508543,1733521849764,-500.0,9.589e-05,2]
[344508544,1733521849774,-1364.19,9.589e-05,2]
[344508545,1733521849783,-617.18967089,9.589e-05,2]
[344508546,1733521849793,-1364.19,9.589e-05,2]
[344508547,1733521849803,-500.0,9.589e-05,2]
[344508548,1733521849812,-500.0,9.589e-05,2]
[344508549,1733521849822,-1364.19,9.589e-05,2]
[344508550,1733521849831,-500.0,9.589e-05,2]
[344508551,1733521849841,-1364.19,9.589e-05,2]
[344508552,1733521849850,-500.0,9.589e-05,2]
[344508553,1733521849860,-500.0,9.589e-05,2]
[344508554,1733521849870,-1364.19,9.589e-05,2]
[344508555,1733521849879,-446.20773092,9.589e-05,2]
[344508556,1733521849889,-500.0,9.589e-05,2]
[344508557,1733521849898,-1364.19,9.589e-05,2]
[344508558,1733521849907,-500.0,9.589e-05,2]
[344508559,1733521849917,-1364.19,9.589e-05,2]
[344508560,1733521849926,-465.76772577,9.589e-05,2]
[344508561,1733522008314,5313.94,0.0002,120]
[344508562,1733522008337,10000.0,0.0002,120]
[344508563,1733522008366,25390.06,0.0002,120]
[344508579,1733523031892,-582.79708696,7.677e-05,2]
[344508580,1733523031902,-213.24452865,7.677e-05,2]
[344508581,1733523031911,-245.86752106,7.677e-05,2]
[344508582,1733523031921,-152.17368009,7.677e-05,2]
[344508583,1733523031933,-47.82631991,7.677e-05,2]
[344508584,1733523031946,-754.55368957,7.678e-05,2]
[344508585,1733523031957,-144.05699908,7.678e-05,2]
[344508586,1733523031966,-673.95801649,7.678e-05,2]
[344508587,1733523031976,-213.24452865,7.678e-05,2]
[344508588,1733523031986,-213.24452865,7.678e-05,2]
[344508589,1733523031995,-200.0,7.678e-05,2]
[344508590,1733523032005,-200.0,7.678e-05,2]
[344508591,1733523032014,-379.10138427,7.678e-05,2]
[344508592,1733523032024,-505.46851237,7.679e-05,2]
[344508593,1733523032033,-213.24452865,7.679e-05,2]
[344508594,1733523032042,-200.0,7.679e-05,2]
[344508595,1733523032052,-200.0,7.679e-05,2]
[344508596,1733523032061,-673.95801649,7.679e-05,2]
[344508597,1733523032072,-284.32603821,7.679e-05,2]
[344508598,1733523032081,-327.82336142,7.679e-05,2]
[344508599,1733523032090,-200.0,7.68e-05,2]
[344508600,1733523032108,-505.46851237,7.68e-05,2]
[344508601,1733523032117,-213.24452865,7.68e-05,2]
[344508602,1733523032127,-200.0,7.68e-05,2]
[344508603,1733523032137,-200.0,7.681e-05,2]
[344508604,1733523032147,-200.0,7.681e-05,2]
[344508605,1733523032156,-200.0,7.681e-05,2]
[344508606,1733523032165,-200.0,7.681e-05,2]
[344508607,1733523032174,-200.0,7.681e-05,2]
[344508608,1733523032183,-200.0,7.681e-05,2]
[344508609,1733523032193,-200.0,7.681e-05,2]
[344508610,1733523032202,-582.79708696,7.681e-05,2]
[344508611,1733523032212,-437.09781522,7.681e-05,2]
[344508612,1733523032222,-200.0,7.681e-05,2]
[344508613,1733523032231,-245.86752106,7.682e-05,2]
[344508614,1733523032240,-200.0,7.682e-05,2]
[344508615,1733523032249,-582.79708696,7.682e-05,2]
[344508616,1733523032258,-200.0,7.683e-05,2]
[344508617,1733523032268,-327.82336142,7.683e-05,2]
[344508618,1733523032277,-898.61068865,7.683e-05,2]
[344508619,1733523032286,-673.95801649,7.683e-05,2]
[344508620,1733523032295,-379.10138427,7.683e-05,2]
[344508621,1733523032304,-245.86752106,7.683e-05,2]
[344508622,1733523032313,-200.0,7.684e-05,2]
[344508623,1733523032322,-200.0,7.684e-05,2]
[344508624,1733523032331,-284.32603821,7.684e-05,2]
[344508625,1733523032340,-200.0,7.684e-05,2]
[344508626,1733523032355,-582.79708696,7.684e-05,2]
[344508627,1733523032363,-505.46851237,7.684e-05,2]
[344508628,1733523032373,-200.0,7.685e-05,2]
[344508629,1733523032381,-200.0,7.685e-05,2]
[344508630,1733523032391,-327.82336142,7.685e-05,2]
[344508631,1733523032400,-200.0,7.685e-05,2]
[344508632,1733523032409,-327.82336142,7.685e-05,2]
[344508633,1733523032418,-213.24452865,7.686e-05,2]
[344508634,1733523032428,-379.10138427,7.686e-05,2]
[344508635,1733523032437,-200.0,7.686e-05,2]
[344508636,1733523032447,-200.0,7.686e-05,2]
[344508637,1733523032456,-200.0,7.686e-05,2]
[344508638,1733523032466,-200.0,7.686e-05,2]
[344508639,1733523032475,-505.46851237,7.686e-05,2]
[344508640,1733523032484,-200.0,7.687e-05,2]
[344508641,1733523032493,-200.0,7.687e-05,2]
[344508642,1733523032502,-200.0,7.687e-05,2]
[344508643,1733523032512,-200.0,7.687e-05,2]
[344508644,1733523032521,-200.0,7.687e-05,2]
[344508645,1733523032530,-200.0,7.687e-05,2]
[344508646,1733523032540,-673.95801649,7.687e-05,2]
[344508647,1733523032549,-200.0,7.688e-05,2]
[344508648,1733523032559,-200.0,7.688e-05,2]
[344508649,1733523032568,-200.0,7.688e-05,2]
[344508650,1733523032577,-262.53048435,7.689e-05,2]
[344508651,1733523032586,-200.0,7.689e-05,2]
[344508652,1733523032598,-505.46851237,7.689e-05,2]
[344508653,1733523032608,-898.61068865,7.689e-05,2]
[344508654,1733523032617,-437.09781522,7.689e-05,2]
[344508655,1733523032626,-200.0,7.69e-05,2]
[344508656,1733523032636,-200.0,7.69e-05,2]
[344508657,1733523032646,-437.09781522,7.69e-05,2]
[344508658,1733523032655,-200.0,7.69e-05,2]
[344508659,1733523032664,-200.0,7.69e-05,2]
[344508660,1733523032673,-200.0,7.69e-05,2]
[344508661,1733523032683,-200.0,7.69e-05,2]
[344508662,1733523032692,-379.10138427,7.691e-05,2]
[344508663,1733523032701,-200.0,7.691e-05,2]
[344508664,1733523032710,-284.32603821,7.691e-05,2]
[344508665,1733523032719,-262.53048435,7.691e-05,2]
[344508666,1733523032729,-200.0,7.691e-05,2]
[344508667,1733523032739,-200.0,7.691e-05,2]
[344508668,1733523032749,-437.09781522,7.691e-05,2]
[344508669,1733523032758,-284.32603821,7.691e-05,2]
[344508670,1733523032767,-200.0,7.691e-05,2]
[344508671,1733523032776,-673.95801649,7.692e-05,2]
[344508672,1733523032786,-284.32603821,7.692e-05,2]
[344508673,1733523032795,-200.0,7.692e-05,2]
[344508674,1733523032804,-200.0,7.692e-05,2]
[344508675,1733523032814,-200.0,7.692e-05,2]
[344508676,1733523032823,-298.6889542,7.692e-05,2]
[344508677,1733523032836,-29.13440722,7.692e-05,2]
[344508678,1733523032848,-200.0,7.692e-05,2]
[344508679,1733523032858,-200.0,7.692e-05,2]
[344508680,1733523032868,-219.83899703,7.692e-05,2]
[344508681,1733523032879,-107.98436439,7.692e-05,2]
[344508682,1733523032888,-200.0,7.693e-05,2]
[344508683,1733523032898,-200.0,7.693e-05,2]
[344508684,1733523032907,-898.61068865,7.693e-05,2]
[344508685,1733523032916,-200.0,7.694e-05,2]
[344508686,1733523032927,-200.0,7.694e-05,2]
[344508687,1733523032938,-245.86752106,7.694e-05,2]
[344508688,1733523032951,-379.10138427,7.695e-05,2]
[344508689,1733523032961,-200.0,7.695e-05,2]
[344508690,1733523032971,-200.0,7.695e-05,2]
[344508691,1733523032983,-200.0,7.695e-05,2]
[344508692,1733523032993,-200.0,7.695e-05,2]
[344508693,1733523033002,-262.53048435,7.695e-05,2]
[344508694,1733523033295,-200.0,7.695e-05,2]
[344508695,1733523033330,-673.95801649,7.696e-05,2]
[344508696,1733523033339,-262.53048435,7.696e-05,2]
[344508697,1733523033354,-200.0,7.696e-05,2]
[344508698,1733523033364,-898.61068865,7.696e-05,2]
[344508699,1733523033374,-200.0,7.696e-05,2]
[344508700,1733523033383,-582.79708696,7.696e-05,2]
[344508701,1733523033392,-200.0,7.697e-05,2]
[344508702,1733523033402,-262.53048435,7.697e-05,2]
[344508703,1733523033412,-262.53048435,7.697e-05,2]
[344508704,1733523033421,-200.0,7.698e-05,2]
[344508705,1733523033431,-379.10138427,7.698e-05,2]
[344508706,1733523033440,-245.86752106,7.698e-05,2]
[344508707,1733523033449,-200.0,7.698e-05,2]
[344508708,1733523033459,-200.0,7.698e-05,2]
[344508709,1733523033468,-898.61068865,7.698e-05,2]
[344508710,1733523033478,-245.86752106,7.698e-05,2]
[344508711,1733523033487,-284.32603821,7.699e-05,2]
[344508712,1733523033496,-155.17515888,7.699e-05,2]
[344508713,1733523033516,-44.82484112,7.699e-05,2]
[344508714,1733523033526,-200.0,7.699e-05,2]
[344508715,1733523033536,-582.79708696,7.699e-05,2]
[344508716,1733523033545,-437.09781522,7.699e-05,2]
[344508717,1733523033555,-200.0,7.699e-05,2]
[344508718,1733523033564,-505.46851237,7.699e-05,2]
[344508719,1733523033574,-200.0,7.699e-05,2]
[344508720,1733523033583,-200.0,7.699e-05,2]
[344508721,1733523033592,-200.0,7.7e-05,2]
[344508722,1733523033606,-437.09781522,7.7e-05,2]
[344508723,1733523033616,-200.0,7.7e-05,2]
[344508724,1733523033625,-250.0,7.983e-05,2]
[344508725,1733523033635,-250.0,7.983e-05,2]
[344508726,1733523033644,-427.11,8.013e-05,2]
[344508727,1733523033653,-1147.17,8.021e-05,2]
[344508728,1733523033663,-329.56,8.024e-05,3]
[344508729,1733523033673,-250.0,8.035e-05,2]
[344508730,1733523033682,-1388.50839833,8.046e-05,2]
[344508731,1733523033704,-22511.49160167,8.046e-05,2]
[344508732,1733523033714,-788.68,8.05e-05,2]
[344508733,1733523033724,-150.0,8.094e-05,2]
[344508734,1733523033733,-1702.411294,8.094e-05,2]
[344508735,1733523033743,-150.0,8.218e-05,2]
[344508736,1733523033753,-4959.84,8.219e-05,2]
[344508737,1733523033763,-169.49,8.219e-05,2]
[344508738,1733523033772,-150.99,8.219e-05,2]
[344508739,1733523033782,-402.29,8.219e-05,2]
[344508740,1733523033792,-1632.01,8.219e-05,2]
[344508741,1733523033802,-1000.0,8.219e-05,2]
[344508742,1733523033811,-172.56525,8.255e-05,2]
[344508743,1733523033822,-299.99,8.255e-05,2]
[344508744,1733523033832,-493.83,8.272e-05,2]
[344508745,1733523033842,-508.07,8.278e-05,2]
[344508746,1733523033857,-491.67,8.303e-05,2]
[344508747,1733523033866,-498.59,8.319e-05,2]
[344508748,1733523033875,-509.16,8.341e-05,2]
[344508749,1733523033885,-490.97,8.371e-05,2]
[344508750,1733523033895,-502.08,8.411e-05,2]
[344508751,1733523033905,-497.27,8.465e-05,2]
[344508752,1733523033914,-494.57,8.539e-05,2]
[344508753,1733523033924,-497.83,8.637e-05,2]
[344508754,1733523033935,-200.0,8.793e-05,2]
[344508755,1733523033948,-491.61,8.921e-05,2]
[344508756,1733523033958,-181.35,8.957e-05,2]
[344508757,1733523033967,-18148.8,9.018e-05,5]
[344508758,1733523033978,-788.68,9.056e-05,2]
[344508759,1733523033988,-618.367,9.11e-05,2]
[344508760,1733523033997,-504.24,9.149e-05,2]
[344508761,1733523034007,-150.0,9.178e-05,2]
[344508762,1733523034017,-405.77,9.178e-05,2]
[344508763,1733523034027,-169.49,9.247e-05,2]
[344508764,1733523034037,-1000.0,9.247e-05,2]
[344508765,1733523034047,-1989.0,9.3e-05,2]
[344508766,1733523034056,-627.48753435,9.389e-05,2]
[344508767,1733523034066,-300.0,9.4e-05,3]
[344508768,1733523034075,-150.72,9.41e-05,2]
[344508769,1733523034084,-306.38,9.41e-05,2]
[344508770,1733523034094,-2018.188,9.457e-05,2]
[344508771,1733523034107,-157.668,9.457e-05,2]
[344508772,1733523034117,-499.16,9.458e-05,2]
[344508773,1733523034126,-333.64,9.458e-05,2]
[344508774,1733523034135,-1591.243,9.458e-05,2]
[344508775,1733523034145,-563.0,9.458e-05,2]
[344508776,1733523034155,-1254.125,9.458e-05,2]
[344508777,1733523034164,-150.0,9.458e-05,2]
[344508778,1733523034174,-496.05,9.46e-05,2]
[344508779,1733523034184,-505.16,9.462e-05,2]
[344508780,1733523034193,-503.35,9.466e-05,2]
[344508781,1733523034203,-14910.4661,9.489e-05,2]
[344508782,1733523034212,-10050.9042,9.489e-05,2]
[344508783,1733523034222,-2500.0,9.489e-05,2]
[344508784,1733523034232,-2500.0,9.489e-05,2]
[344508785,1733523034241,-166.61847036,9.499e-05,2]
[344508786,1733523034250,-600.0,9.5e-05,3]
[344508787,1733523034260,-1000.0,9.5e-05,2]
[344508788,1733523034270,-19605.0,9.562e-05,2]
[344508789,1733523034279,-304.79340281,9.563e-05,2]
[344508790,1733523034288,-500.0,9.563e-05,2]
[344508791,1733523034297,-788.8,9.588e-05,2]
[344508792,1733523034306,-646.0,9.589e-05,2]
[344508793,1733523034315,-288248.35160727,9.589e-05,2]
[344508794,1733523034324,-20565.85673278,9.589e-05,2]
[344508795,1733523034334,-500.0,9.589e-05,2]
[344508796,1733523034344,-500.0,9.589e-05,2]
[344508797,1733523034359,-500.0,9.589e-05,2]
[344508798,1733523034371,-500.0,9.589e-05,2]
[344508799,1733523034380,-500.0,9.589e-05,2]
[344508800,1733523034390,-500.0,9.589e-05,2]
[344508801,1733523034399,-500.0,9.589e-05,2]
[344508802,1733523034408,-500.0,9.589e-05,2]
[344508803,1733523034418,-500.0,9.589e-05,2]
[344508804,1733523034428,-500.0,9.589e-05,2]
[344508805,1733523034437,-500.0,9.589e-05,2]
[344508806,1733523034446,-500.0,9.589e-05,2]
[344508807,1733523034456,-500.0,9.589e-05,2]
[344508808,1733523034465,-500.0,9.589e-05,2]
[344508809,1733523034475,-500.0,9.589e-05,2]
[344508810,1733523034485,-404.46256888,9.589e-05,2]
[344508811,1733523034494,-192.16794496,9.589e-05,2]
[344508812,1733523034504,-500.0,9.589e-05,2]
[344508813,1733523034513,-500.0,9.589e-05,2]
[344508814,1733523034522,-500.0,9.589e-05,2]
[344508815,1733523034531,-500.0,9.589e-05,2]
[344508816,1733523034541,-500.0,9.589e-05,2]
[344508817,1733523034550,-500.0,9.589e-05,2]
[344508818,1733523034561,-500.0,9.589e-05,2]
[344508819,1733523034573,-500.0,9.589e-05,2]
[344508820,1733523034583,-500.0,9.589e-05,2]
[344508821,1733523034595,-500.0,9.589e-05,2]
[344508822,1733523034610,-500.0,9.589e-05,2]
[344508823,1733523034619,-500.0,9.589e-05,2]
[344508824,1733523034629,-500.0,9.589e-05,2]
[344508825,1733523034639,-500.0,9.589e-05,2]
[344508826,1733523034649,-500.0,9.589e-05,2]
[344508827,1733523034658,-500.0,9.589e-05,2]
[344508828,1733523034667,-500.0,9.589e-05,2]
[344508829,1733523034677,-500.0,9.589e-05,2]
[344508830,1733523034687,-500.0,9.589e-05,2]
[344508831,1733523034696,-500.0,9.589e-05,2]
[344508832,1733523034706,-500.0,9.589e-05,2]
[344508833,1733523034716,-501.49060999,9.589e-05,2]
[344508834,1733523034725,-500.0,9.589e-05,2]
[344508835,1733523034735,-538.03856681,9.589e-05,2]
[344508836,1733523034746,-345.97877456,9.589e-05,2]
[344508837,1733523034755,-500.48298344,9.589e-05,2]
[344508838,1733523034765,-540.65,9.589e-05,2]
[344508839,1733523034774,-513.6733401,9.589e-05,2]
[344508840,1733523034784,-500.0,9.589e-05,2]
[344508841,1733523034794,-371.24721864,9.589e-05,2]
[344508842,1733523034803,-500.0,9.589e-05,2]
[344508843,1733523034813,-500.0,9.589e-05,2]
[344508845,1733523034822,-500.0,9.589e-05,2]
[344508847,1733523034832,-500.0,9.589e-05,2]
[344508849,1733523034841,-500.0,9.589e-05,2]
[344508851,1733523034857,-500.0,9.589e-05,2]
[344508853,1733523034867,-500.0,9.589e-05,2]
[344508854,1733523034877,-500.0,9.589e-05,2]
[344508855,1733523034887,-500.0,9.589e-05,2]
[344508856,1733523034896,-500.0,9.589e-05,2]
[344508857,1733523034906,-500.0,9.589e-05,2]
[344508858,1733523034916,-500.0,9.589e-05,2]
[344508859,1733523034925,-500.0,9.589e-05,2]
[344508860,1733523034936,-500.0,9.589e-05,2]
[344508861,1733523034948,-500.0,9.589e-05,2]
[344508862,1733523034958,-500.0,9.589e-05,2]
[344508863,1733523034967,-500.0,9.589e-05,2]
[344508864,1733523034979,-500.0,9.589e-05,2]
[344508865,1733523034988,-500.0,9.589e-05,2]
[344508867,1733523034998,-500.0,9.589e-05,2]
[344508868,1733523035007,-500.0,9.589e-05,2]
[344508870,1733523035018,-500.0,9.589e-05,2]
[344508872,1733523035028,-500.0,9.589e-05,2]
[344508874,1733523035037,-500.0,9.589e-05,2]
[344508876,1733523035046,-500.0,9.589e-05,2]
[344508877,1733523035055,-364.74848501,9.589e-05,2]
[344508879,1733523035065,-500.0,9.589e-05,2]
[344508881,1733523035074,-500.0,9.589e-05,2]
[344508883,1733523035083,-500.0,9.589e-05,2]
[344508885,1733523035094,-500.0,9.589e-05,2]
[344508886,1733523035106,-500.0,9.589e-05,2]
[344508887,1733523035115,-500.0,9.589e-05,2]
[344508888,1733523035124,-500.0,9.589e-05,2]
[344508889,1733523035133,-500.0,9.589e-05,2]
[344508890,1733523035143,-502.58409389,9.589e-05,2]
[344508891,1733523035152,-500.0,9.589e-05,2]
[344508892,1733523035162,-500.0,9.589e-05,2]
[344508893,1733523035171,-500.0,9.589e-05,2]
[344508894,1733523035180,-500.0,9.589e-05,2]
[344508895,1733523035190,-500.0,9.589e-05,2]
[344508896,1733523035199,-500.0,9.589e-05,2]
[344508897,1733523035208,-500.0,9.589e-05,2]
[344508898,1733523035218,-500.0,9.589e-05,2]
[344508899,1733523035227,-500.0,9.589e-05,2]
[344508900,1733523035236,-500.0,9.589e-05,2]
[344508901,1733523035245,-500.0,9.589e-05,2]
[344508902,1733523035255,-500.0,9.589e-05,2]
[344508903,1733523035266,-1260.1,9.589e-05,2]
[344508904,1733523035275,-788.63,9.589e-05,2]
[344508905,1733523035286,-500.0,9.589e-05,2]
[344508906,1733523035295,-1260.1,9.589e-05,2]
[344508907,1733523035305,-788.63,9.589e-05,2]
[344508908,1733523035314,-500.0,9.589e-05,2]
[344508909,1733523035324,-1260.1,9.589e-05,2]
[344508910,1733523035333,-788.63,9.589e-05,2]
[344508911,1733523035343,-500.0,9.589e-05,2]
[344508912,1733523035356,-1260.1,9.589e-05,2]
[344508913,1733523035365,-788.63,9.589e-05,2]
[344508914,1733523035375,-500.0,9.589e-05,2]
[344508915,1733523035384,-1260.1,9.589e-05,2]
[344508916,1733523035394,-500.0,9.589e-05,2]
[344508917,1733523035404,-788.63,9.589e-05,2]
[344508918,1733523035413,-500.0,9.589e-05,2]
[344508919,1733523035423,-1260.1,9.589e-05,2]
[344508920,1733523035433,-788.63,9.589e-05,2]
[344508921,1733523035442,-1260.1,9.589e-05,2]
[344508922,1733523035452,-1260.1,9.589e-05,2]
[344508923,1733523035461,-500.0,9.589e-05,2]
[344508924,1733523035471,-788.63,9.589e-05,2]
[344508925,1733523035480,-500.0,9.589e-05,2]
[344508926,1733523035489,-1260.1,9.589e-05,2]
[344508927,1733523035499,-788.63,9.589e-05,2]
[344508928,1733523035508,-1260.1,9.589e-05,2]
[344508929,1733523035518,-500.0,9.589e-05,2]
[344508930,1733523035528,-788.63,9.589e-05,2]
[344508931,1733523035537,-1260.1,9.589e-05,2]
[344508932,1733523035547,-788.63,9.589e-05,2]
[344508933,1733523035557,-1260.1,9.589e-05,2]
[344508934,1733523035567,-788.63,9.589e-05,2]
[344508935,1733523035576,-500.0,9.589e-05,2]
[344508936,1733523035585,-327.26925207,9.589e-05,2]
[344508937,1733523035600,-1260.1,9.589e-05,2]
[344508938,1733523035611,-788.63,9.589e-05,2]
[344508939,1733523035620,-500.0,9.589e-05,2]
[344508940,1733523035629,-1260.1,9.589e-05,2]
[344508941,1733523035639,-788.63,9.589e-05,2]
[344508942,1733523035650,-1260.1,9.589e-05,2]
[344508943,1733523035660,-788.63,9.589e-05,2]
[344508944,1733523035669,-1260.1,9.589e-05,2]
[344508945,1733523035678,-831.8,9.589e-05,2]
[344508946,1733523035687,-831.8,9.589e-05,2]
[344508947,1733523035696,-1260.1,9.589e-05,2]
[344508948,1733523035706,-831.8,9.589e-05,2]
[344508949,1733523035716,-1260.1,9.589e-05,2]
[344508950,1733523035726,-831.8,9.589e-05,2]
[344508951,1733523035735,-831.8,9.589e-05,2]
[344508952,1733523035745,-1260.1,9.589e-05,2]
[344508953,1733523035755,-788.63,9.589e-05,2]
[344508954,1733523035764,-831.8,9.589e-05,2]
[344508955,1733523035773,-1260.1,9.589e-05,2]
[344508956,1733523035783,-831.8,9.589e-05,2]
[344508957,1733523035792,-788.63,9.589e-05,2]
[344508958,1733523035801,-1260.1,9.589e-05,2]
[344508959,1733523035811,-788.63,9.589e-05,2]
[344508960,1733523035820,-831.8,9.589e-05,2]
[344508961,1733523035830,-1260.1,9.589e-05,2]
[344508962,1733523035839,-831.8,9.589e-05,2]
[344508963,1733523035856,-788.63,9.589e-05,2]
[344508964,1733523035865,-831.8,9.589e-05,2]
[344508965,1733523035875,-788.63,9.589e-05,2]
[344508966,1733523035884,-1260.1,9.589e-05,2]
[344508967,1733523035893,-831.8,9.589e-05,2]
[344508968,1733523035903,-788.63,9.589e-05,2]
[344508969,1733523035913,-1260.26115915,9.589e-05,2]
[344508970,1733523035923,-831.8,9.589e-05,2]
[344508971,1733523035933,-788.63,9.589e-05,2]
[344508972,1733523035945,-350.79953258,9.589e-05,2]
[344508973,1733523036698,-481.00046742,9.589e-05,2]
[344508974,1733523036709,-788.63,9.589e-05,2]
[344508975,1733523036719,-831.8,9.589e-05,2]
[344508976,1733523036729,-831.8,9.589e-05,2]
[344508977,1733523036738,-788.63,9.589e-05,2]
[344508978,1733523036748,-831.8,9.589e-05,2]
[344508979,1733523036758,-788.67074153,9.589e-05,2]
[344508980,1733523036768,-831.8,9.589e-05,2]
[344508981,1733523036778,-831.8,9.589e-05,2]
[344508982,1733523036788,-831.8,9.589e-05,2]
[344508983,1733523036797,-831.8,9.589e-05,2]
[344508984,1733523036807,-372.84762369,9.589e-05,2]
[344508985,1733523036817,-831.8,9.589e-05,2]
[344508986,1733523036827,-831.8,9.589e-05,2]